[Event "IMSA Rapid Men 2019"]
[Site "Hengshui"]
[Date "2019.05.14"]
[Round "2.8"]
[White "Mamedov, Rauf"]
[Black "Jones, Gawain C B"]
[Result "1/2-1/2"]
[ECO "B50"]
[WhiteElo "2650"]
[BlackElo "2702"]
[Annotator "RC"]
[PlyCount "114"]
[EventDate "2019.05.14"]
[EventType "rapid"]
[EventCountry "CHN"]
[SourceTitle "playchess.com"]
[Source "ChessBase"]
[SourceQuality "1"]
[TimeControl "900+10"]

1. e4 {[%emt 0:00:00]} c5 {[%emt 0:00:00]} 2. Nf3 {[%emt 0:00:00]} d6 {[%emt 0:00:00]} 3. Nc3 {[%emt 0:00:00]} Nf6 {[%emt 0:00:00]} 4. e5 {[%emt 0:00:00]} dxe5 {[%emt 0:00:01]} 5. Nxe5 {[%emt 0:00:00]} a6 {[%emt 0:00:19]} 6. g3 {[%emt 0:00:10]} Nbd7 {[%emt 0:00:38]} 7. Nc4 {[%emt 0:00:32]} b5 {[%emt 0:00:16]} 8. Bg2 {[%emt 0:00:02]} Rb8 {[%emt 0:00:02]} 9. Ne3 {[%emt 0:00:03]} e6 {[%emt 0:00:11]} 10. O-O {[%emt 0:00:07]} Bd6 {[%emt 0:00:58]} 11. a4 {[%emt 0:00:02]} O-O {[%emt 0:00:26]} 12. axb5 {[%emt 0:00:09]} axb5 {[%emt 0:00:01]} 13. b3 {[%emt 0:01:58]} Be5 {[%emt 0:00:44]} 14. Bb2 {[%emt 0:00:03]} Bd4 {[%emt 0:00:17]} 15. Qe2 {[%emt 0:04:44]} Qb6 {[%emt 0:00:29]} 16. Ra2 {[%emt 0:00:25]} Bb7 {[%emt 0:00:50]} 17. Rfa1 {[%emt 0:00:02]} Bxg2 {[%emt 0:01:46]} 18. Nxg2 {[%emt 0:00:03]} Ne5 {[%emt 0:00:44]} 19. Ne4 {[%emt 0:01:21]} Bxb2 {[%emt 0:00:09]} 20. Nxf6+ {[%emt 0:00:12]} gxf6 {[%emt 0:00:02]} 21. Rxb2 {[%emt 0:00:01]} Rfd8 {[%emt 0:01:56]} 22. d3 {[%emt 0:01:09]} Qc6 {[%emt 0:00:20]} 23. Ne1 {[%emt 0:00:06]} b4 {[%emt 0:01:55]} 24. Rba2 {[%emt 0:00:08]} Qd5 {[%emt 0:00:05]} 25. Qe3 {[%emt 0:00:46]} Nc6 {[%emt 0:00:45]} 26. Nf3 {[%emt 0:00:03]} Kg7 {[%emt 0:00:05]} 27. Qf4 h5 {[%emt 0:00:57]} 28. Ra6 {[%emt 0:01:37]} Rbc8 {[%emt 0:00:04]} 29. R1a2 {[%emt 0:01:19]} Rd7 {[%emt 0:00:14]} 30. Rb6 {[%emt 0:00:28]} Rcc7 {[%emt 0:01:06]} 31. Raa6 {[%emt 0:01:26]} Nd4 {[%emt 0:00:11]} 32. Nxd4 {[%emt 0:00:05]} cxd4 {[%emt 0:00:02]} 33. Rb8 {[%emt 0:00:05]} Ra7 {[%emt 0:00:55]} 34. Rxa7 {[%emt 0:00:25]} Rxa7 {[%emt 0:00:02]} 35. Qe4 {[%emt 0:00:01]} Qc5 {[%emt 0:01:15]} 36. Kg2 {[%emt 0:01:23]} Ra2 {[%emt 0:00:23]} 37. Rd8 {[%emt 0:00:02]} e5 {[%emt 0:01:03]} 38. Qf3 {[%emt 0:00:31]} Qc7 {[%emt 0:00:51]} 39. Rd5 {[%emt 0:00:11]} Qc6 {[%emt 0:00:20]} 40. g4 {[%emt 0:00:04]} hxg4 {[%emt 0:00:24]} 41. Qxg4+ {[%emt 0:00:02]} Kf8 {[%emt 0:00:01]} 42. Qf3 {[%emt 0:00:30]} Rxc2 {[%emt 0:00:02]} 43. h4 {[%emt 0:00:01]} Ke7 {[%emt 0:00:10]} 44. h5 {[%emt 0:00:01]} Ke6 {[%emt 0:00:26]} 45. Rd8 {[%emt 0:00:01]} Qxf3+ {[%emt 0:00:04]} 46. Kxf3 {[%emt 0:00:01]} Kf5 {[%emt 0:00:02]} 47. Rg8 {[%emt 0:00:06]} Rc3 {[%emt 0:00:41]} 48. Kg2 {[%emt 0:00:20]} e4 {[%emt 0:00:01]} 49. h6 {[%emt 0:01:22]} exd3 {[%emt 0:00:07]} 50. h7 {[%emt 0:00:01]} d2 {[%emt 0:00:01]} 51. h8=Q {[%emt 0:00:01]} d1=Q {[%emt 0:00:03]} 52. Qh7+ {[%emt 0:00:02]} Kf4 {[%emt 0:00:26]} 53. Qh4+ {[%emt 0:00:53]} Kf5 {[%emt 0:00:01]} 54. Qh7+ {[%emt 0:00:22]} Kf4 {[%emt 0:00:07]} 55. Qh4+ {[%emt 0:00:04]} Kf5 {[%emt 0:00:11]} 56. Qh7+ {[%emt 0:00:04]} Kf4 {[%emt 0:00:40]} 57. Qh4+ {[%emt 0:00:17]} Kf5 1/2-1/2

[Event "IMSA Rapid Men 2019"]
[Site "Hengshui"]
[Date "2019.05.14"]
[Round "3.1"]
[White "Dominguez Perez, Leinier"]
[Black "Fedoseev, Vladimir"]
[Result "1/2-1/2"]
[ECO "C54"]
[WhiteElo "2750"]
[BlackElo "2683"]
[Annotator "RC"]
[PlyCount "149"]
[EventDate "2019.05.14"]
[EventType "rapid"]
[EventCountry "CHN"]
[SourceTitle "playchess.com"]
[Source "ChessBase"]
[SourceQuality "1"]
[TimeControl "900+10"]

1. e4 {[%emt 0:00:00]} e5 {[%emt 0:00:00]} 2. Nf3 {[%emt 0:00:00]} Nc6 {[%emt 0:00:00]} 3. Bc4 {[%emt 0:00:00]} Bc5 {[%emt 0:00:03]} 4. c3 {[%emt 0:00:00]} Nf6 {[%emt 0:00:03]} 5. d3 {[%emt 0:00:00]} d6 {[%emt 0:00:32]} 6. Nbd2 {[%emt 0:00:03]} a5 {[%emt 0:00:18]} 7. O-O {[%emt 0:00:11]} O-O {[%emt 0:00:05]} 8. h3 {[%emt 0:00:03]} Be6 {[%emt 0:00:54]} 9. Bb5 {[%emt 0:00:03]} Ba7 {[%emt 0:00:24]} 10. Re1 {[%emt 0:00:14]} Ne7 {[%emt 0:01:26]} 11. Nf1 {[%emt 0:00:30]} c6 {[%emt 0:00:37]} 12. Ba4 {[%emt 0:00:02]} h6 {[%emt 0:01:24]} 13. Ng3 {[%emt 0:00:05]} b5 {[%emt 0:00:29]} 14. Bc2 {[%emt 0:00:03]} c5 {[%emt 0:00:31]} 15. d4 {[%emt 0:00:56]} Qc7 {[%emt 0:00:32]} 16. Be3 {[%emt 0:00:26]} Rac8 {[%emt 0:00:41]} 17. d5 {[%emt 0:02:44]} Bd7 {[%emt 0:00:02]} 18. a4 {[%emt 0:00:25]} c4 {[%emt 0:00:27]} 19. Nxe5 {[%emt 0:04:05]} Bxe3 {[%emt 0:00:01]} 20. Rxe3 {[%emt 0:00:02]} dxe5 {[%emt 0:00:11]} 21. d6 {[%emt 0:00:01]} Qb6 {[%emt 0:00:15]} 22. dxe7 {[%emt 0:00:03]} Rfe8 {[%emt 0:00:01]} 23. axb5 {[%emt 0:00:55]} Rxe7 {[%emt 0:00:30]} 24. Re2 {[%emt 0:00:59]} Bxb5 {[%emt 0:00:33]} 25. Rd2 {[%emt 0:00:15]} Rd7 {[%emt 0:00:14]} 26. Nf5 {[%emt 0:01:33]} Rcd8 {[%emt 0:00:31]} 27. Ne7+ {[%emt 0:00:18]} Kf8 {[%emt 0:01:09]} 28. Nd5 {[%emt 0:00:03]} Nxd5 {[%emt 0:00:11]} 29. exd5 {[%emt 0:00:02]} Bc6 {[%emt 0:00:19]} 30. Be4 {[%emt 0:01:07]} Bxd5 {[%emt 0:00:59]} 31. Bxd5 {[%emt 0:03:22]} Qc5 {[%emt 0:01:00]} 32. b4 {[%emt 0:00:54]} axb4 {[%emt 0:00:02]} 33. cxb4 {[%emt 0:00:02]} Qxb4 {[%emt 0:00:05]} 34. Ra4 {[%emt 0:00:38]} Qb3 {[%emt 0:01:05]} 35. Rxc4 {[%emt 0:00:34]} Qxd1+ {[%emt 0:00:04]} 36. Rxd1 {[%emt 0:00:01]} Rxd5 {[%emt 0:00:01]} 37. Rxd5 {[%emt 0:00:01]} Rxd5 {[%emt 0:00:01]} 38. h4 {[%emt 0:00:17]} f5 {[%emt 0:00:29]} 39. g3 {[%emt 0:00:14]} Kf7 {[%emt 0:00:19]} 40. Rc7+ {[%emt 0:00:02]} Kg6 {[%emt 0:00:05]} 41. Rb7 {[%emt 0:00:02]} e4 {[%emt 0:00:06]} 42. Kf1 {[%emt 0:00:15]} Rd3 {[%emt 0:00:12]} 43. Ra7 {[%emt 0:00:08]} f4 {[%emt 0:01:05]} 44. gxf4 {[%emt 0:00:02]} Rf3 {[%emt 0:00:12]} 45. h5+ {[%emt 0:00:22]} Kf6 {[%emt 0:00:29]} 46. Ra6+ {[%emt 0:00:08]} Kf5 {[%emt 0:00:01]} 47. Rg6 {[%emt 0:00:26]} e3 {[%emt 0:00:20]} 48. Ke2 {[%emt 0:00:01]} Kxf4 {[%emt 0:00:15]} 49. fxe3+ {[%emt 0:00:16]} Rxe3+ 50. Kf2 {[%emt 0:00:01]} Re7 {[%emt 0:00:02]} 51. Kg2 {[%emt 0:00:22]} Rd7 {[%emt 0:00:08]} 52. Kf2 {[%emt 0:00:07]} Ra7 {[%emt 0:00:16]} 53. Kg2 {[%emt 0:00:15]} Rb7 {[%emt 0:00:23]} 54. Kf2 {[%emt 0:00:04]} Ke4 {[%emt 0:00:56]} 55. Kg2 {[%emt 0:00:10]} Ke3 {[%emt 0:00:17]} 56. Kg3 {[%emt 0:00:11]} Ke2 {[%emt 0:00:03]} 57. Kg2 {[%emt 0:00:06]} Re7 {[%emt 0:00:01]} 58. Rg4 {[%emt 0:00:11]} Rf7 {[%emt 0:00:13]} 59. Re4+ {[%emt 0:00:06]} Kd3 {[%emt 0:00:01]} 60. Rg4 {[%emt 0:00:01]} Ke3 {[%emt 0:00:02]} 61. Rg3+ {[%emt 0:00:08]} Ke2 {[%emt 0:00:01]} 62. Rg6 {[%emt 0:00:04]} Rf2+ {[%emt 0:00:06]} 63. Kg1 {[%emt 0:00:08]} Rf7 {[%emt 0:00:01]} 64. Kg2 {[%emt 0:00:01]} Re7 {[%emt 0:00:37]} 65. Rg4 {[%emt 0:00:04]} Ke3 {[%emt 0:00:19]} 66. Rg3+ {[%emt 0:00:08]} Kf4 {[%emt 0:00:02]} 67. Rg6 {[%emt 0:00:02]} Re2+ {[%emt 0:00:06]} 68. Kf1 {[%emt 0:00:06]} Re7 {[%emt 0:00:05]} 69. Kf2 {[%emt 0:00:05]} Ra7 {[%emt 0:00:04]} 70. Kg2 {[%emt 0:00:03]} Ra2+ {[%emt 0:00:01]} 71. Kh3 {[%emt 0:00:01]} Ra5 {[%emt 0:00:02]} 72. Rxg7 {[%emt 0:00:02]} Rxh5+ {[%emt 0:00:01]} 73. Kg2 {[%emt 0:00:00]} Rg5+ {[%emt 0:00:02]} 74. Rxg5 {[%emt 0:00:01]} hxg5 {[%emt 0:00:02]} 75. Kf2 {[%emt 0:00:01]} 1/2-1/2

[Event "IMSA Rapid Men 2019"]
[Site "Hengshui"]
[Date "2019.05.14"]
[Round "4.2"]
[White "Fedoseev, Vladimir"]
[Black "Vidit, Santosh Gujrathi"]
[Result "1-0"]
[ECO "A48"]
[WhiteElo "2683"]
[BlackElo "2707"]
[Annotator "ChessBase"]
[PlyCount "125"]
[EventDate "2019.05.14"]
[EventType "rapid"]
[EventCountry "CHN"]
[SourceTitle "playchess.com"]
[Source "ChessBase"]
[SourceQuality "1"]
[TimeControl "900+10"]

1. d4 {[%emt 0:00:00]} Nf6 {[%emt 0:00:00]} 2. Nf3 {[%emt 0:00:00]} g6 {[%emt 0:00:27]} 3. b3 {[%emt 0:00:41]} Bg7 {[%emt 0:00:22]} 4. Bb2 {[%emt 0:00:01]} d5 {[%emt 0:00:52]} 5. e3 {[%emt 0:00:15]} O-O {[%emt 0:00:30]} 6. Be2 {[%emt 0:01:04]} c5 {[%emt 0:00:42]} 7. dxc5 {[%emt 0:00:15]} Qa5+ {[%emt 0:00:03]} 8. Nbd2 {[%emt 0:00:02]} Ne4 {[%emt 0:00:16]} 9. Bxg7 {[%emt 0:02:09]} Kxg7 {[%emt 0:00:01]} 10. Qc1 {[%emt 0:01:26]} Nc6 {[%emt 0:07:17]} 11. a3 {[%emt 0:03:44]} Qxc5 {[%emt 0:00:42]} 12. Nxe4 {[%emt 0:00:22]} dxe4 {[%emt 0:00:01]} 13. Qb2+ {[%emt 0:00:01]} f6 {[%emt 0:00:07]} 14. Nd2 {[%emt 0:00:08]} Qg5 {[%emt 0:00:09]} 15. g4 {[%emt 0:01:46]} Qe5 {[%emt 0:03:01]} 16. O-O-O {[%emt 0:01:39]} Qxb2+ {[%emt 0:00:17]} 17. Kxb2 {[%emt 0:00:01]} f5 {[%emt 0:00:01]} 18. gxf5 {[%emt 0:01:13]} Bxf5 {[%emt 0:00:11]} 19. h4 {[%emt 0:00:35]} Rad8 {[%emt 0:00:12]} 20. h5 {[%emt 0:00:19]} g5 {[%emt 0:00:04]} 21. h6+ {[%emt 0:00:01]} Kf6 {[%emt 0:00:19]} 22. Nf1 {[%emt 0:00:08]} Rxd1 {[%emt 0:00:07]} 23. Bxd1 {[%emt 0:00:01]} Bg6 {[%emt 0:00:44]} 24. Ng3 {[%emt 0:00:06]} Ne5 {[%emt 0:00:14]} 25. Kc3 {[%emt 0:00:24]} g4 {[%emt 0:00:08]} 26. Ne2 {[%emt 0:00:35]} Rc8+ {[%emt 0:00:44]} 27. Kb2 {[%emt 0:00:09]} Nf3 {[%emt 0:00:09]} 28. Nf4 {[%emt 0:00:18]} e5 {[%emt 0:00:08]} 29. Nd5+ {[%emt 0:00:04]} Kg5 {[%emt 0:00:03]} 30. c4 {[%emt 0:00:07]} Rf8 {[%emt 0:00:10]} 31. Kc3 {[%emt 0:01:32]} Nh4 {[%emt 0:00:15]} 32. Rh2 {[%emt 0:00:17]} Nf5 {[%emt 0:00:04]} 33. Bc2 {[%emt 0:00:10]} Nxh6 {[%emt 0:00:04]} 34. Ne7 {[%emt 0:00:01]} Nf5 {[%emt 0:01:43]} 35. Nxg6 {[%emt 0:00:05]} Kxg6 {[%emt 0:00:05]} 36. Bxe4 {[%emt 0:00:14]} b6 {[%emt 0:00:01]} 37. b4 {[%emt 0:00:42]} h5 {[%emt 0:00:08]} 38. c5 {[%emt 0:00:02]} bxc5 {[%emt 0:00:01]} 39. bxc5 {[%emt 0:00:01]} Kg5 {[%emt 0:00:06]} 40. Bxf5 {[%emt 0:00:36]} Rxf5 {[%emt 0:00:51]} 41. Kc4 {[%emt 0:00:01]} h4 {[%emt 0:00:04]} 42. c6 {[%emt 0:00:01]} Rf8 {[%emt 0:00:25]} 43. Kd5 {[%emt 0:00:04]} g3 {[%emt 0:00:10]} 44. fxg3 {[%emt 0:00:13]} hxg3 {[%emt 0:00:00]} 45. Rh1 {[%emt 0:00:07]} Kg4 {[%emt 0:00:06]} 46. c7 {[%emt 0:00:28]} g2 {[%emt 0:00:05]} 47. Rc1 {[%emt 0:00:23]} Kf3 {[%emt 0:00:05]} 48. Kxe5 {[%emt 0:00:14]} Kxe3 {[%emt 0:00:23]} 49. Kd6 {[%emt 0:00:05]} Kf2 {[%emt 0:00:18]} 50. Kd7 {[%emt 0:00:01]} Rf7+ {[%emt 0:00:13]} 51. Kc6 {[%emt 0:00:04]} Rf8 {[%emt 0:00:08]} 52. Kb7 {[%emt 0:00:01]} a5 {[%emt 0:00:13]} 53. c8=Q {[%emt 0:00:10]} Rxc8 {[%emt 0:00:01]} 54. Kxc8 {[%emt 0:00:01]} g1=Q {[%emt 0:00:18]} 55. Rxg1 {[%emt 0:00:00]} Kxg1 {[%emt 0:00:01]} 56. Kb7 {[%emt 0:00:01]} Kf2 {[%emt 0:00:02]} 57. Kb6 {[%emt 0:00:03]} a4 {[%emt 0:00:14]} 58. Kb5 {[%emt 0:00:02]} Ke3 {[%emt 0:00:02]} 59. Kxa4 {[%emt 0:00:01]} Kd4 {[%emt 0:00:02]} 60. Kb5 {[%emt 0:00:00]} Kd5 {[%emt 0:00:04]} 61. a4 {[%emt 0:00:01]} Kd6 {[%emt 0:00:01]} 62. Kb6 {[%emt 0:00:01]} Kd7 {[%emt 0:00:01]} 63. Kb7 {[%emt 0:00:01]} 1-0

[Event "IMSA Rapid Men 2019"]
[Site "Hengshui"]
[Date "2019.05.15"]
[Round "7.1"]
[White "Fedoseev, Vladimir"]
[Black "Korobov, Anton"]
[Result "0-1"]
[ECO "B96"]
[WhiteElo "2683"]
[BlackElo "2687"]
[Annotator "RC"]
[PlyCount "126"]
[EventDate "2019.05.14"]
[EventType "rapid"]
[EventCountry "CHN"]
[SourceTitle "playchess.com"]
[Source "ChessBase"]
[SourceQuality "1"]
[TimeControl "900+10"]

1. e4 {[%emt 0:00:10]} c5 {[%emt 0:00:00]} 2. Nf3 {[%emt 0:00:01]} d6 {[%emt 0:00:00]} 3. d4 {[%emt 0:00:01]} cxd4 {[%emt 0:00:00]} 4. Nxd4 {[%emt 0:00:01]} Nf6 {[%emt 0:00:00]} 5. Nc3 {[%emt 0:00:02]} a6 {[%emt 0:00:00]} 6. Bg5 {[%emt 0:00:26]} e6 {[%emt 0:00:00]} 7. f4 {[%emt 0:00:05]} Qc7 {[%emt 0:00:02]} 8. Bxf6 {[%emt 0:00:46]} gxf6 {[%emt 0:00:01]} 9. Be2 {[%emt 0:00:07]} Nc6 {[%emt 0:00:18]} 10. Qd2 {[%emt 0:01:22]} Rg8 {[%emt 0:00:28]} 11. Bf3 {[%emt 0:00:17]} Nxd4 {[%emt 0:01:30]} 12. Qxd4 {[%emt 0:00:01]} Qc5 {[%emt 0:00:01]} 13. Qd3 {[%emt 0:00:56]} Bd7 {[%emt 0:00:22]} 14. O-O-O {[%emt 0:00:59]} O-O-O {[%emt 0:00:03]} 15. Kb1 {[%emt 0:00:24]} Kb8 {[%emt 0:00:15]} 16. g3 {[%emt 0:01:15]} h5 {[%emt 0:00:38]} 17. Rhe1 {[%emt 0:04:03]} h4 {[%emt 0:00:19]} 18. gxh4 {[%emt 0:00:50]} Bh6 {[%emt 0:00:28]} 19. Qd2 {[%emt 0:00:24]} Bc6 {[%emt 0:00:34]} 20. Rf1 {[%emt 0:01:05]} f5 {[%emt 0:01:02]} 21. exf5 {[%emt 0:01:25]} Bxf3 {[%emt 0:00:04]} 22. Rxf3 {[%emt 0:00:01]} Qxf5 {[%emt 0:00:01]} 23. Qf2 {[%emt 0:00:08]} d5 {[%emt 0:01:16]} 24. Ne2 {[%emt 0:00:03]} Bg7 {[%emt 0:00:51]} 25. Ng3 {[%emt 0:01:46]} Qg4 {[%emt 0:00:22]} 26. h5 {[%emt 0:00:03]} Rc8 {[%emt 0:00:22]} 27. Rg1 {[%emt 0:00:10]} Bd4 {[%emt 0:00:24]} 28. Qxd4 {[%emt 0:00:02]} Qxf3 {[%emt 0:00:02]} 29. c3 {[%emt 0:00:07]} Rg4 {[%emt 0:00:31]} 30. Rf1 {[%emt 0:00:46]} Qg2 {[%emt 0:00:02]} 31. Rf2 {[%emt 0:00:03]} Qg1+ {[%emt 0:00:11]} 32. Kc2 {[%emt 0:00:01]} Rh4 {[%emt 0:00:23]} 33. Qd2 {[%emt 0:00:17]} d4 {[%emt 0:00:34]} 34. Qxd4 {[%emt 0:00:49]} Rxh2 {[%emt 0:00:08]} 35. Qe5+ {[%emt 0:00:05]} Ka8 {[%emt 0:00:39]} 36. Rxh2 {[%emt 0:00:05]} Qxh2+ {[%emt 0:00:02]} 37. Ne2 {[%emt 0:00:01]} Rd8 {[%emt 0:00:28]} 38. c4 {[%emt 0:00:27]} Qh3 {[%emt 0:02:07]} 39. Nd4 {[%emt 0:00:02]} Rg8 {[%emt 0:00:24]} 40. Kd2 {[%emt 0:01:22]} Qg2+ {[%emt 0:00:54]} 41. Ne2 {[%emt 0:00:11]} Qg7 {[%emt 0:00:23]} 42. Qxg7 {[%emt 0:00:14]} Rxg7 {[%emt 0:00:01]} 43. Ke3 {[%emt 0:00:01]} Rg2 {[%emt 0:00:14]} 44. f5 {[%emt 0:00:16]} exf5 {[%emt 0:00:21]} 45. a4 {[%emt 0:00:20]} Kb8 {[%emt 0:00:33]} 46. Nf4 {[%emt 0:00:15]} Rxb2 {[%emt 0:00:13]} 47. Kd4 {[%emt 0:00:03]} f6 {[%emt 0:00:09]} 48. Kd5 {[%emt 0:00:05]} Rf2 {[%emt 0:00:04]} 49. Ng6 {[%emt 0:00:16]} f4 {[%emt 0:00:11]} 50. Ke4 {[%emt 0:00:17]} f3 {[%emt 0:00:03]} 51. Nf4 {[%emt 0:00:08]} Kc7 {[%emt 0:00:21]} 52. Nd5+ {[%emt 0:00:06]} Kc6 {[%emt 0:00:18]} 53. Nxf6 {[%emt 0:00:07]} Rf1 {[%emt 0:00:14]} 54. Ke3 {[%emt 0:00:13]} a5 {[%emt 0:00:15]} 55. Ne4 {[%emt 0:00:07]} Rh1 {[%emt 0:00:31]} 56. Ng3 {[%emt 0:00:05]} Rh4 {[%emt 0:00:05]} 57. Kxf3 {[%emt 0:00:05]} Kc5 {[%emt 0:00:14]} 58. Ne4+ {[%emt 0:00:08]} Kxc4 {[%emt 0:00:13]} 59. Nf6 {[%emt 0:00:02]} b5 {[%emt 0:00:09]} 60. axb5 {[%emt 0:00:08]} Kxb5 {[%emt 0:00:02]} 61. Kg3 {[%emt 0:00:01]} Rh1 {[%emt 0:00:18]} 62. Kg2 {[%emt 0:00:02]} Rd1 {[%emt 0:00:13]} 63. h6 {[%emt 0:00:02]} Rd8 {[%emt 0:00:01]} 0-1

[Event "IMSA Rapid Men 2019"]
[Site "Hengshui"]
[Date "2019.05.15"]
[Round "8.7"]
[White "Cheparinov, Ivan"]
[Black "Mamedov, Rauf"]
[Result "1/2-1/2"]
[ECO "D02"]
[WhiteElo "2667"]
[BlackElo "2650"]
[Annotator "RC"]
[PlyCount "174"]
[EventDate "2019.05.14"]
[EventType "rapid"]
[EventCountry "CHN"]
[SourceTitle "playchess.com"]
[Source "ChessBase"]
[SourceQuality "1"]
[TimeControl "900+10"]

1. Nf3 {[%emt 0:00:00]} d5 {[%emt 0:00:00]} 2. d4 {[%emt 0:00:00]} Nf6 {[%emt 0:00:11]} 3. c4 {[%emt 0:00:00]} e6 {[%emt 0:00:03]} 4. g3 {[%emt 0:00:01]} c5 {[%emt 0:00:01]} 5. cxd5 {[%emt 0:00:19]} exd5 {[%emt 0:00:02]} 6. Bg2 {[%emt 0:00:02]} Nc6 {[%emt 0:00:01]} 7. O-O {[%emt 0:00:08]} Be7 {[%emt 0:00:01]} 8. dxc5 {[%emt 0:00:53]} Bxc5 {[%emt 0:00:01]} 9. Bg5 {[%emt 0:00:36]} O-O {[%emt 0:01:09]} 10. Nc3 {[%emt 0:00:02]} d4 {[%emt 0:00:07]} 11. Ne4 {[%emt 0:00:04]} Be7 {[%emt 0:00:02]} 12. Nxf6+ {[%emt 0:00:02]} Bxf6 {[%emt 0:00:01]} 13. Bxf6 {[%emt 0:00:03]} Qxf6 {[%emt 0:00:01]} 14. Rc1 {[%emt 0:00:31]} Re8 {[%emt 0:00:50]} 15. Qd2 {[%emt 0:00:14]} Bg4 {[%emt 0:00:09]} 16. h3 {[%emt 0:00:52]} Be6 {[%emt 0:00:02]} 17. b4 {[%emt 0:00:17]} a6 {[%emt 0:01:56]} 18. Ne1 {[%emt 0:00:34]} Rad8 {[%emt 0:00:38]} 19. Nd3 {[%emt 0:00:28]} Bd5 {[%emt 0:00:02]} 20. Rc5 {[%emt 0:00:23]} Bxg2 {[%emt 0:00:03]} 21. Kxg2 {[%emt 0:00:02]} Ne7 {[%emt 0:01:42]} 22. Qf4 {[%emt 0:00:29]} Qe6 {[%emt 0:00:01]} 23. Qf3 {[%emt 0:00:02]} Nd5 {[%emt 0:01:59]} 24. Re1 {[%emt 0:00:14]} h6 {[%emt 0:00:21]} 25. a3 {[%emt 0:00:31]} b6 {[%emt 0:00:20]} 26. Rcc1 {[%emt 0:00:16]} Rc8 {[%emt 0:01:09]} 27. Nf4 {[%emt 0:00:54]} Nxf4+ {[%emt 0:00:06]} 28. Qxf4 {[%emt 0:00:01]} Rc3 {[%emt 0:01:23]} 29. Rcd1 {[%emt 0:01:11]} Qc6+ {[%emt 0:00:13]} 30. Kg1 {[%emt 0:00:13]} Re4 {[%emt 0:00:10]} 31. Qb8+ {[%emt 0:00:13]} Kh7 {[%emt 0:00:39]} 32. Qd8 {[%emt 0:00:01]} Qe6 {[%emt 0:02:18]} 33. Rxd4 {[%emt 0:00:53]} Rxe2 {[%emt 0:00:04]} 34. Rxe2 {[%emt 0:00:01]} Qxe2 {[%emt 0:00:01]} 35. Rd1 {[%emt 0:00:01]} Rxa3 {[%emt 0:00:07]} 36. Qd5 {[%emt 0:00:10]} Rf3 {[%emt 0:00:22]} 37. Rf1 {[%emt 0:00:04]} b5 {[%emt 0:00:24]} 38. h4 {[%emt 0:00:27]} Rf6 {[%emt 0:00:55]} 39. Qd1 {[%emt 0:00:16]} Rxf2 {[%emt 0:01:11]} 40. Qb1+ {[%emt 0:00:04]} Qc2 {[%emt 0:00:01]} 41. Qxc2+ {[%emt 0:00:02]} Rxc2 {[%emt 0:00:01]} 42. Rxf7 {[%emt 0:00:02]} Rc4 {[%emt 0:00:07]} 43. Ra7 {[%emt 0:00:04]} Rxb4 {[%emt 0:00:01]} 44. Rxa6 {[%emt 0:00:01]} Rb2 {[%emt 0:00:04]} 45. h5 {[%emt 0:00:04]} b4 {[%emt 0:02:43]} 46. Rb6 {[%emt 0:02:11]} b3 {[%emt 0:00:06]} 47. Rb7 {[%emt 0:00:09]} Kg8 {[%emt 0:00:01]} 48. Kf1 {[%emt 0:02:02]} Kf8 {[%emt 0:00:11]} 49. Ke1 {[%emt 0:00:22]} Rb1+ {[%emt 0:00:31]} 50. Kf2 {[%emt 0:00:22]} b2 {[%emt 0:00:22]} 51. Kg2 {[%emt 0:00:03]} Ke8 {[%emt 0:00:01]} 52. Kh2 {[%emt 0:01:18]} Kd8 {[%emt 0:00:01]} 53. Kg2 {[%emt 0:00:01]} Kc8 {[%emt 0:00:00]} 54. Rb3 {[%emt 0:00:02]} Kc7 {[%emt 0:00:01]} 55. Kh2 {[%emt 0:00:04]} Kc6 {[%emt 0:00:00]} 56. Kg2 {[%emt 0:00:04]} Kc5 {[%emt 0:00:01]} 57. Rb8 {[%emt 0:00:02]} Kd5 {[%emt 0:00:01]} 58. Rb7 {[%emt 0:00:06]} Ke4 {[%emt 0:00:02]} 59. Rb4+ {[%emt 0:00:27]} Kf5 {[%emt 0:00:08]} 60. Kh2 {[%emt 0:00:23]} Kf6 {[%emt 0:00:06]} 61. Rb5 {[%emt 0:00:05]} Ke6 {[%emt 0:00:01]} 62. Kg2 {[%emt 0:00:02]} Kd6 {[%emt 0:00:01]} 63. Rb8 {[%emt 0:00:07]} Kd5 {[%emt 0:00:02]} 64. Rb5+ {[%emt 0:00:17]} Kc4 {[%emt 0:00:06]} 65. Rb8 {[%emt 0:00:01]} Kd3 {[%emt 0:00:11]} 66. Rd8+ {[%emt 0:00:12]} Ke4 {[%emt 0:00:06]} 67. Rb8 {[%emt 0:00:04]} Kf5 {[%emt 0:00:02]} 68. Rb5+ {[%emt 0:00:11]} Kg4 {[%emt 0:00:04]} 69. Kh2 {[%emt 0:00:03]} Kf3 {[%emt 0:00:01]} 70. Rb3+ {[%emt 0:00:01]} Kf2 {[%emt 0:00:35]} 71. Rb5 {[%emt 0:00:07]} Ke3 {[%emt 0:00:08]} 72. Rb8 {[%emt 0:00:17]} Kf3 {[%emt 0:00:25]} 73. Rb3+ {[%emt 0:00:10]} Kf2 {[%emt 0:00:20]} 74. Rb8 {[%emt 0:00:05]} Kf1 {[%emt 0:00:20]} 75. Rb7 {[%emt 0:00:09]} Ke2 {[%emt 0:00:33]} 76. Kg2 {[%emt 0:00:05]} Kd3 {[%emt 0:00:04]} 77. Rd7+ {[%emt 0:00:06]} Kc4 {[%emt 0:00:05]} 78. Rb7 {[%emt 0:00:05]} Kd5 {[%emt 0:00:02]} 79. Rb5+ {[%emt 0:00:04]} Ke4 {[%emt 0:00:02]} 80. Rb4+ {[%emt 0:00:08]} Kd3 {[%emt 0:00:05]} 81. Rb8 {[%emt 0:00:04]} Ke4 {[%emt 0:00:12]} 82. Rb4+ {[%emt 0:00:02]} Kf5 {[%emt 0:00:02]} 83. Rb5+ {[%emt 0:00:07]} Kg4 {[%emt 0:00:01]} 84. Kh2 {[%emt 0:00:20]} Kf3 {[%emt 0:00:00]} 85. Rb3+ {[%emt 0:00:01]} Kf2 {[%emt 0:00:00]} 86. Rb5 {[%emt 0:00:03]} Kf1 {[%emt 0:00:00]} 87. Rb8 {[%emt 0:00:09]} Ke2 {[%emt 0:00:00]} 1/2-1/2